fUSD/lending_fUSD_20240125
["ID","MTS","AMOUNT","RATE_DAILY","PERIOD"]
[312743783,1706191877341,-156.51295806,0.0005185,60]
[312743784,1706191877351,-396.03974936,0.00051899,60]
[312743785,1706191877360,-167.2965874,0.000519,120]
[312743786,1706191877372,-151.14429462,0.000519,35]
[312743787,1706191877381,-500.0,0.00051917,31]
[312743788,1706191877391,-500.0,0.00051917,31]
[312743789,1706191877400,-500.0,0.00051917,31]
[312743790,1706191877409,-500.0,0.00051917,31]
[312743791,1706191877418,-500.0,0.00051917,31]
[312743792,1706191877427,-500.0,0.00051917,31]
[312743793,1706191877437,-500.0,0.00051917,31]
[312743794,1706191877446,-500.0,0.00051917,31]
[312743795,1706191877457,-500.0,0.00051917,31]
[312743796,1706191877467,-500.0,0.00051917,31]
[312743797,1706191877476,-500.0,0.00051917,31]
[312743798,1706191877485,-500.0,0.00051917,31]
[312743799,1706191877494,-500.0,0.00051917,31]
[312743800,1706191877503,-500.0,0.00051917,31]
[312743801,1706191877511,-500.0,0.00051917,31]
[312743802,1706191877520,-500.0,0.00051917,2]
[312743803,1706191877529,-500.0,0.00051917,31]
[312743804,1706191877538,-785.98,0.00051917,31]
[312743805,1706191877546,-500.0,0.00051917,31]
[312743806,1706191877558,-500.0,0.00051917,31]
[312743807,1706191877567,-500.0,0.00051917,31]
[312743808,1706191877576,-500.0,0.00051917,31]
[312743809,1706191877586,-575.32,0.00051917,31]
[312743810,1706191877597,-500.0,0.00051917,31]
[312743811,1706191877608,-500.0,0.00051917,31]
[312743812,1706191877619,-500.0,0.00051917,31]
[312743813,1706191877628,-500.0,0.00051917,31]
[312743814,1706191877639,-576.46,0.00051917,31]
[312743815,1706191877650,-787.27,0.00051917,31]
[312743816,1706191877660,-500.0,0.00051917,31]
[312743817,1706191877671,-500.0,0.00051917,31]
[312743818,1706191877682,-500.0,0.00051917,31]
[312743819,1706191877693,-641.44,0.00051917,31]
[312743820,1706191877703,-500.0,0.00051917,31]
[312743821,1706191877715,-500.0,0.00051917,31]
[312743822,1706191877727,-500.0,0.00051917,31]
[312743823,1706191877737,-156.51295806,0.00051923,60]
[312743824,1706191877747,-151.01696798,0.00051955,60]
[312743825,1706191877758,-324.0,0.0005199,2]
[312743826,1706191877770,-336.0,0.0005199,2]
[312743827,1706191877781,-547.14423294,0.00051997,2]
[312743828,1706191877794,-72060.3817523,0.00052,3]
[312743829,1706191877805,-13251.309981,0.00052,120]
[312743830,1706191877815,-1959.14361458,0.00052,120]
[312743831,1706191877824,-2611.38312164,0.00052,2]
[312743832,1706191877833,-74709.0801594,0.00052,2]
[312743833,1706191877842,-211.20281589,0.00052,30]
[312743834,1706191877852,-5569.0,0.00052,120]
[312743835,1706191877862,-200.0,0.00052,120]
[312743836,1706191877871,-200.0,0.00052,120]
[312743837,1706191877880,-2125.73218894,0.00052,120]
[312743838,1706191877890,-168.0,0.00052,120]
[312743839,1706191877899,-1035.0,0.00052,60]
[312743840,1706191877908,-628.10720618,0.00052,60]
[312743841,1706191877918,-658.78198192,0.00052,60]
[312743842,1706191877928,-170.0,0.00052,120]
[312743843,1706191877937,-11652.92137411,0.00052,2]
[312743844,1706191877946,-500.0,0.00052,120]
[312743845,1706191877955,-587.69923535,0.0005202,60]
[312743846,1706191877965,-300.0,0.00052053,2]
[312743847,1706191877974,-163.73784171,0.00052054,2]
[312743848,1706191877984,-163.73784171,0.00052054,2]
[312743849,1706191877995,-163.73784171,0.00052054,2]
[312743850,1706191878005,-163.73784171,0.00052054,2]
[312743851,1706191878015,-1205.9494329,0.00052054,4]
[312743852,1706191878025,-959.02781888,0.00052054,30]
[312743853,1706191878035,-1205.9494329,0.00052054,4]
[312743854,1706191878046,-500.0,0.00052054,31]
[312743855,1706191878059,-512.77,0.00052054,31]
[312743856,1706191878069,-431.96676468,0.00052054,31]
[312743857,1706191878078,-173.05441795,0.00052054,31]
[312743858,1706191878089,-500.0,0.00052054,31]
[312743859,1706191878098,-500.0,0.00052054,31]
[312743860,1706191878109,-342.48468951,0.00052054,31]
[312743861,1706191878119,-500.0,0.00052054,31]
[312743862,1706191878130,-749.61,0.00052054,31]
[312743863,1706191878140,-500.0,0.00052054,31]
[312743864,1706191878151,-500.0,0.00052054,31]
[312743865,1706191878163,-500.0,0.00052054,31]
[312743866,1706191878173,-500.0,0.00052054,31]
[312743867,1706191878182,-500.0,0.00052054,31]
[312743868,1706191878191,-785.22,0.00052054,120]
[312743869,1706191878201,-500.0,0.00052054,31]
[312743870,1706191878210,-500.0,0.00052054,31]
[312743871,1706191878220,-500.0,0.00052054,31]
[312743872,1706191878230,-500.0,0.00052054,31]
[312743873,1706191878239,-500.0,0.00052054,31]
[312743874,1706191878249,-500.0,0.00052054,31]
[312743875,1706191878258,-500.0,0.00052054,31]
[312743876,1706191878267,-500.0,0.00052054,31]
[312743877,1706191878276,-500.0,0.00052054,31]
[312743878,1706191878286,-500.0,0.00052054,31]
[312743879,1706191878295,-500.0,0.00052054,31]
[312743880,1706191878306,-444.2392482,0.00052054,31]
[312743881,1706191878315,-500.0,0.00052054,31]
[312743882,1706191878324,-500.0,0.00052054,31]
[312743883,1706191878334,-500.0,0.00052054,31]
[312743884,1706191878343,-500.0,0.00052054,31]
[312743885,1706191878352,-922.06,0.00052054,31]
[312743886,1706191878362,-500.0,0.00052054,31]
[312743887,1706191878372,-500.0,0.00052054,31]
[312743888,1706191878383,-500.0,0.00052054,31]
[312743889,1706191878393,-500.0,0.00052054,31]
[312743890,1706191878402,-500.0,0.00052054,31]
[312743891,1706191878412,-500.0,0.00052054,31]
[312743892,1706191878421,-611.17137529,0.00052054,31]
[312743893,1706191878431,-294.0593551,0.00052054,31]
[312743894,1706191878440,-500.0,0.00052054,31]
[312743895,1706191878449,-500.0,0.00052054,31]
[312743896,1706191878458,-500.0,0.00052054,31]
[312743897,1706191878471,-500.0,0.00052054,31]
[312743898,1706191878481,-1085.77,0.00052054,7]
[312743899,1706191878491,-536.71,0.00052054,20]
[312743900,1706191878500,-500.0,0.00052054,31]
[312743901,1706191878510,-1442.1,0.00052054,31]
[312743902,1706191878519,-500.0,0.00052054,31]
[312743903,1706191878529,-500.0,0.00052054,31]
[312743904,1706191878538,-500.0,0.00052054,31]
[312743905,1706191878548,-500.0,0.00052054,31]
[312743906,1706191878557,-500.0,0.00052054,31]
[312743907,1706191878567,-2284.7,0.00052054,31]
[312743908,1706191878576,-500.0,0.00052054,31]
[312743909,1706191878586,-500.0,0.00052054,31]
[312743910,1706191878595,-500.0,0.00052054,31]
[312743911,1706191878604,-500.0,0.00052054,31]
[312743912,1706191878614,-500.0,0.00052054,31]
[312743913,1706191878623,-500.0,0.00052054,31]
[312743914,1706191878633,-500.0,0.00052054,31]
[312743915,1706191878642,-270.80684656,0.00052054,31]
[312743916,1706191878652,-500.0,0.00052054,31]
[312743917,1706191878661,-505.7,0.00052054,31]
[312743918,1706191878671,-168.17,0.00052054,31]
[312743919,1706191878681,-202.85904196,0.00052054,31]
[312743920,1706191878690,-547.16533441,0.00052054,31]
[312743921,1706191878699,-554.4,0.00052054,31]
[312743922,1706191878709,-500.0,0.00052054,31]
[312743923,1706191878719,-500.0,0.00052054,31]
[312743924,1706191878728,-513.38053226,0.00052054,31]
[312743925,1706191878737,-595.01422084,0.00052054,31]
[312743926,1706191878746,-500.0,0.00052054,31]
[312743927,1706191878756,-500.0,0.00052054,31]
[312743928,1706191878765,-500.0,0.00052054,31]
[312743929,1706191878775,-500.0,0.00052054,31]
[312743930,1706191878784,-955.46,0.00052054,2]
[312743931,1706191878794,-544.19,0.00052054,31]
[312743932,1706191878804,-500.0,0.00052054,31]
[312743933,1706191878813,-500.0,0.00052054,31]
[312743934,1706191878823,-500.0,0.00052054,31]
[312743935,1706191878833,-500.0,0.00052054,31]
[312743936,1706191878842,-893.0,0.00052054,2]
[312743937,1706191878853,-500.0,0.00052054,31]
[312743938,1706191878862,-500.0,0.00052054,31]
[312743939,1706191878871,-500.0,0.00052054,31]
[312743940,1706191878881,-500.0,0.00052054,31]
[312743941,1706191878890,-500.0,0.00052054,31]
[312743942,1706191878900,-500.0,0.00052054,31]
[312743943,1706191878909,-500.0,0.00052054,31]
[312743944,1706191878919,-500.0,0.00052054,31]
[312743945,1706191878929,-500.0,0.00052054,31]
[312743946,1706191878938,-500.0,0.00052054,31]
[312743947,1706191878948,-500.0,0.00052054,31]
[312743948,1706191878958,-500.0,0.00052054,31]
[312743949,1706191878967,-1263.99,0.00052054,31]
[312743950,1706191878977,-500.0,0.00052054,31]
[312743951,1706191878987,-500.0,0.00052054,31]
[312743952,1706191878997,-500.0,0.00052054,31]
[312743953,1706191879007,-500.0,0.00052054,31]
[312743954,1706191879017,-500.0,0.00052054,31]
[312743955,1706191879026,-500.0,0.00052054,31]
[312743956,1706191879037,-500.0,0.00052054,31]
[312743957,1706191879046,-818.92,0.00052054,31]
[312743958,1706191879057,-500.0,0.00052054,31]
[312743959,1706191879067,-500.0,0.00052054,31]
[312743960,1706191879077,-500.0,0.00052054,31]
[312743961,1706191879087,-500.0,0.00052054,31]
[312743962,1706191879097,-500.0,0.00052054,31]
[312743963,1706191879106,-500.0,0.00052054,31]
[312743964,1706191879116,-191.58,0.00052054,31]
[312743965,1706191879126,-500.0,0.00052054,31]
[312743966,1706191879135,-500.0,0.00052054,31]
[312743967,1706191879145,-522.59,0.00052054,31]
[312743968,1706191879154,-500.0,0.00052054,31]
[312743969,1706191879164,-558.35,0.00052054,31]
[312743970,1706191879173,-710.0,0.00052054,31]
[312743971,1706191879182,-500.0,0.00052054,31]
[312743972,1706191879192,-500.0,0.00052054,31]
[312743973,1706191879201,-812.86,0.00052054,31]
[312743974,1706191879210,-500.0,0.00052054,31]
[312743975,1706191879220,-500.0,0.00052054,31]
[312743976,1706191879229,-500.0,0.00052054,31]
[312743977,1706191879238,-353.11,0.00052054,31]
[312743978,1706191879248,-500.0,0.00052054,31]
[312743979,1706191879257,-500.0,0.00052054,31]
[312743980,1706191879267,-500.0,0.00052054,31]
[312743981,1706191879277,-1032.42,0.00052054,31]
[312743982,1706191879286,-500.0,0.00052054,31]
[312743983,1706191879296,-599.04,0.00052054,31]
[312743984,1706191879306,-500.0,0.00052054,31]
[312743985,1706191879315,-540.17443611,0.00052054,2]
[312743986,1706191879325,-500.0,0.00052054,31]
[312743987,1706191879335,-500.0,0.00052054,31]
[312743988,1706191879344,-500.0,0.00052054,31]
[312743989,1706191879354,-500.0,0.00052054,31]
[312743990,1706191879363,-619.84,0.00052054,31]
[312743991,1706191879374,-500.0,0.00052054,31]
[312743992,1706191879383,-534.11291868,0.00052054,2]
[312743993,1706191879393,-218.19,0.00052054,31]
[312743994,1706191879402,-151.0,0.00052055,14]
[312743995,1706191879412,-151.0,0.00052055,14]
[312743996,1706191879422,-151.0,0.00052055,14]
[312743997,1706191879431,-151.0,0.00052055,2]
[312743998,1706191879441,-151.0,0.00052055,7]
[312743999,1706191879451,-155.172277,0.00052055,14]
[312744000,1706191879460,-236.916306,0.00052055,14]
[312744001,1706191879469,-236.916306,0.00052055,14]
[312744002,1706191879479,-151.0,0.00052055,14]
[312744003,1706191879489,-151.0,0.00052055,14]
[312744004,1706191879498,-151.0,0.00052055,14]
[312744005,1706191879507,-151.0,0.00052055,14]
[312744006,1706191879517,-151.0,0.00052055,14]
[312744007,1706191879527,-152.264726,0.00052055,14]
[312744008,1706191879537,-151.0,0.00052055,14]
[312744009,1706191879547,-151.0,0.00052055,14]
[312744010,1706191879556,-238.858548,0.00052055,14]
[312744011,1706191879566,-202.274363,0.00052055,14]
[312744012,1706191879577,-151.0,0.00052055,14]
[312744013,1706191879588,-151.0,0.00052055,14]
[312744014,1706191879599,-151.0,0.00052055,14]
[312744015,1706191879609,-151.0,0.00052055,14]
[312744016,1706191879620,-151.0,0.00052055,14]
[312744017,1706191879631,-151.0,0.00052055,14]
[312744018,1706191879642,-151.0,0.00052055,14]
[312744019,1706191879652,-151.0,0.00052055,14]
[312744020,1706191879664,-155.241368,0.00052055,14]
[312744021,1706191879675,-155.763717,0.00052055,14]
[312744022,1706191879685,-151.0,0.00052055,14]
[312744023,1706191879694,-190.800433,0.00052055,14]
[312744024,1706191879704,-190.800433,0.00052055,14]
[312744025,1706191879715,-163.295028,0.00052055,14]
[312744026,1706191879725,-151.0,0.00052055,14]
[312744027,1706191879735,-166.245576,0.00052055,14]
[312744028,1706191879747,-154.319946,0.00052055,14]
[312744029,1706191879756,-225.23994435,0.000521,120]
[312744030,1706191879765,-500.0,0.000521,2]
[312744031,1706191879776,-181.2,0.00052112,30]
[312744032,1706191879786,-587.69923535,0.00052131,60]
[312744033,1706191879795,-167.0877099,0.00052137,60]
[312744034,1706191879806,-587.69923535,0.00052139,60]
[312744035,1706191879816,-58725.0,0.00052173,30]
[312744036,1706191879826,-521.0,0.00052173,30]
[312744037,1706191879837,-415.0,0.00052173,30]
[312744038,1706191879847,-345.0,0.00052173,30]
[312744039,1706191879857,-155.00526785,0.00052179,60]
[312744040,1706191879867,-162.78049167,0.00052187,60]
[312744041,1706191879877,-396.03974936,0.0005219,60]
[312744042,1706191879887,-500.0,0.00052191,31]
[312744043,1706191879898,-500.0,0.00052191,31]
[312744044,1706191879909,-500.0,0.00052191,31]
[312744045,1706191879920,-500.0,0.00052191,31]
[312744046,1706191879931,-500.0,0.00052191,31]
[312744047,1706191879941,-344.96201658,0.00052191,31]
[312744048,1706191879951,-500.0,0.00052191,31]
[312744049,1706191879961,-500.0,0.00052191,31]
[312744050,1706191879971,-500.0,0.00052191,31]
[312744051,1706191879980,-500.0,0.00052191,31]
[312744052,1706191879990,-500.0,0.00052191,31]
[312744053,1706191880001,-500.0,0.00052191,31]
[312744054,1706191880011,-500.0,0.00052191,31]
[312744055,1706191880021,-500.0,0.00052191,31]
[312744056,1706191880031,-500.0,0.00052191,31]
[312744057,1706191880041,-500.0,0.00052191,2]
[312744058,1706191880051,-500.0,0.00052191,31]
[312744059,1706191880062,-785.98,0.00052191,31]
[312744060,1706191880072,-500.0,0.00052191,31]
[312744061,1706191880082,-500.0,0.00052191,31]
[312744062,1706191880092,-500.0,0.00052191,31]
[312744063,1706191880102,-575.32,0.00052191,31]
[312744064,1706191880112,-500.0,0.00052191,31]
[312744065,1706191880122,-500.0,0.00052191,31]
[312744066,1706191880131,-500.0,0.00052191,31]
[312744067,1706191880142,-500.0,0.00052191,31]
[312744068,1706191880151,-500.0,0.00052191,31]
[312744069,1706191880161,-787.27,0.00052191,31]
[312744070,1706191880171,-500.0,0.00052191,31]
[312744071,1706191880182,-500.0,0.00052191,31]
[312744072,1706191880192,-498.77879837,0.00052191,31]
[312744073,1706191880202,-641.44,0.00052191,31]
[312744074,1706191880212,-500.0,0.00052191,31]
[312744075,1706191880222,-500.0,0.00052191,31]
[312744076,1706191880232,-459.35693961,0.00052191,31]
[312744077,1706191880242,-158.8,0.000522,4]
[312744078,1706191880251,-158.8,0.000522,4]
[312744079,1706191880261,-158.8,0.000522,4]
[312744080,1706191880270,-153.13,0.000522,7]
[312744081,1706191880280,-153.13,0.000522,7]
[312744082,1706191880488,-153.13,0.000522,7]
[312744083,1706191880498,-153.13,0.000522,7]
[312744084,1706191880508,-153.13,0.000522,7]
[312744085,1706191880518,-153.13,0.000522,7]
[312744086,1706191880528,-153.13,0.000522,7]
[312744087,1706191880537,-152.06,0.000522,7]
[312744088,1706191880548,-152.06,0.000522,7]
[312744089,1706191880557,-152.06,0.000522,7]
[312744090,1706191880566,-152.06,0.000522,7]
[312744091,1706191880576,-152.06,0.000522,7]
[312744092,1706191880586,-152.06,0.000522,7]
[312744093,1706191880596,-152.06,0.000522,7]
[312744094,1706191880606,-152.06,0.000522,7]
[312744095,1706191880616,-152.06,0.000522,7]
[312744096,1706191880626,-152.06,0.000522,7]
[312744097,1706191880635,-152.06,0.000522,7]
[312744098,1706191880645,-152.06,0.000522,7]
[312744099,1706191880654,-152.06,0.000522,7]
[312744100,1706191880663,-152.06,0.000522,7]
[312744101,1706191880674,-152.06,0.000522,7]
[312744102,1706191880683,-152.06,0.000522,7]
[312744103,1706191880694,-154.23863763,0.00052236,60]
[312744104,1706191880703,-500.0,0.0005227,7]
[312744105,1706191880713,-156.51295806,0.00052296,60]
[312744106,1706191880724,-173.73,0.000523,14]
[312744107,1706191880734,-500.0,0.00052301,120]
[312744108,1706191880743,-156.51295806,0.00052305,60]
[312744109,1706191880753,-300.0,0.00052327,2]
[312744110,1706191880763,-512.77,0.00052328,31]
[312744111,1706191880773,-500.0,0.00052328,31]
[312744112,1706191880784,-562.52574508,0.00052328,31]
[312744113,1706191880794,-500.0,0.00052328,31]
[312744114,1706191880804,-749.61,0.00052328,31]
[312744115,1706191880815,-500.0,0.00052328,31]
[312744116,1706191880825,-500.0,0.00052328,31]
[312744117,1706191880834,-500.0,0.00052328,31]
[312744118,1706191880843,-500.0,0.00052328,31]
[312744119,1706191880852,-785.22,0.00052328,120]
[312744120,1706191880862,-500.0,0.00052328,31]
[312744121,1706191880873,-500.0,0.00052328,31]
[312744122,1706191880883,-500.0,0.00052328,31]
[312744123,1706191880893,-500.0,0.00052328,31]
[312744124,1706191880903,-500.0,0.00052328,31]
[312744125,1706191880913,-500.0,0.00052328,31]
[312744126,1706191880923,-507.2626542,0.00052328,31]
[312744127,1706191880934,-500.0,0.00052328,31]
[312744128,1706191880943,-500.0,0.00052328,31]
[312744129,1706191880954,-500.0,0.00052328,31]
[312744130,1706191880964,-500.0,0.00052328,31]
[312744131,1706191880974,-922.06,0.00052328,31]
[312744132,1706191880985,-500.0,0.00052328,31]
[312744133,1706191880995,-500.0,0.00052328,31]
[312744134,1706191881013,-500.0,0.00052328,31]
[312744135,1706191881031,-500.0,0.00052328,31]
[312744136,1706191881045,-500.0,0.00052328,31]
[312744137,1706191881056,-500.0,0.00052328,31]
[312744138,1706191881066,-536.10645892,0.00052328,31]
[312744139,1706191881076,-500.0,0.00052328,31]
[312744140,1706191881086,-1085.77,0.00052328,7]
[312744141,1706191881097,-536.71,0.00052328,20]
[312744142,1706191881107,-500.0,0.00052328,31]
[312744143,1706191881117,-1442.1,0.00052328,31]
[312744144,1706191881127,-500.0,0.00052328,31]
[312744145,1706191881137,-500.0,0.00052328,31]
[312744146,1706191881148,-500.0,0.00052328,31]
[312744147,1706191881158,-500.0,0.00052328,31]
[312744148,1706191881168,-500.0,0.00052328,31]
[312744149,1706191881178,-2284.7,0.00052328,31]
[312744150,1706191881187,-500.0,0.00052328,31]
[312744151,1706191881196,-500.0,0.00052328,31]
[312744152,1706191881206,-310.46645417,0.00052328,31]
[312744153,1706191881217,-500.0,0.00052328,31]
[312744154,1706191881227,-236.53895099,0.00052328,31]
[312744155,1706191881237,-500.0,0.00052328,31]
[312744156,1706191881248,-500.0,0.00052328,31]
[312744157,1706191881258,-500.0,0.00052328,31]
[312744158,1706191881269,-505.7,0.00052328,31]
[312744159,1706191881279,-168.17,0.00052328,31]
[312744160,1706191881289,-554.4,0.00052328,31]
[312744161,1706191881300,-500.0,0.00052328,31]
[312744162,1706191881310,-500.0,0.00052328,31]
[312744163,1706191881320,-500.0,0.00052328,31]
[312744164,1706191881330,-500.0,0.00052328,31]
[312744165,1706191881340,-500.0,0.00052328,31]
[312744166,1706191881350,-500.0,0.00052328,31]
[312744167,1706191881360,-955.46,0.00052328,2]
[312744168,1706191881372,-544.19,0.00052328,31]
[312744169,1706191881383,-500.0,0.00052328,31]
[312744170,1706191881393,-500.0,0.00052328,31]
[312744171,1706191881403,-500.0,0.00052328,31]
[312744172,1706191881415,-500.0,0.00052328,31]
[312744173,1706191881425,-893.0,0.00052328,2]
[312744174,1706191881436,-500.0,0.00052328,31]
[312744175,1706191881447,-500.0,0.00052328,31]
[312744176,1706191881458,-603.73135131,0.00052328,31]
[312744177,1706191881470,-500.0,0.00052328,31]
[312744178,1706191881481,-500.0,0.00052328,31]
[312744179,1706191881492,-500.0,0.00052328,31]
[312744180,1706191881503,-500.0,0.00052328,31]
[312744181,1706191881513,-500.0,0.00052328,31]
[312744182,1706191881523,-500.0,0.00052328,31]
[312744183,1706191881533,-500.0,0.00052328,31]
[312744184,1706191881542,-500.0,0.00052328,31]
[312744185,1706191881552,-500.0,0.00052328,31]
[312744186,1706191881562,-1263.99,0.00052328,31]
[312744187,1706191881572,-289.66200008,0.00052328,31]
[312744188,1706191881582,-500.0,0.00052328,31]
[312744189,1706191881592,-500.0,0.00052328,31]
[312744190,1706191881601,-500.0,0.00052328,31]
[312744191,1706191881611,-500.0,0.00052328,31]
[312744192,1706191881621,-500.0,0.00052328,31]
[312744193,1706191881630,-500.0,0.00052328,31]
[312744194,1706191881640,-818.92,0.00052328,31]
[312744195,1706191881650,-500.0,0.00052328,31]
[312744196,1706191881659,-500.0,0.00052328,31]
[312744197,1706191881667,-500.0,0.00052328,31]
[312744198,1706191881677,-500.0,0.00052328,31]
[312744199,1706191881688,-500.0,0.00052328,31]
[312744200,1706191881698,-500.0,0.00052328,31]
[312744201,1706191881708,-500.0,0.00052328,31]
[312744202,1706191881717,-522.59,0.00052328,31]
[312744203,1706191881726,-500.0,0.00052328,31]
[312744204,1706191881736,-558.35,0.00052328,31]
[312744205,1706191881745,-710.0,0.00052328,31]
[312744206,1706191881754,-500.0,0.00052328,31]
[312744207,1706191881764,-500.0,0.00052328,31]
[312744208,1706191881774,-812.86,0.00052328,31]
[312744209,1706191881791,-500.0,0.00052328,31]
[312744210,1706191881801,-500.0,0.00052328,31]
[312744211,1706191881811,-410.36328677,0.00052328,31]
[312744212,1706191881821,-500.0,0.00052328,31]
[312744213,1706191881831,-500.0,0.00052328,31]
[312744214,1706191881841,-1032.42,0.00052328,31]
[312744215,1706191881851,-599.04,0.00052328,31]
[312744216,1706191881860,-500.0,0.00052328,31]
[312744217,1706191881869,-281.3,0.00052328,31]
[312744218,1706191881880,-500.0,0.00052328,31]
[312744219,1706191881890,-500.0,0.00052328,31]
[312744220,1706191881899,-500.0,0.00052328,31]
[312744221,1706191881909,-500.0,0.00052328,31]
[312744222,1706191881919,-190.800433,0.00052328,14]
[312744223,1706191881929,-190.800433,0.00052328,14]
[312744224,1706191881940,-179.0,0.00052329,9]
[312744225,1706191881950,-1175.50042208,0.00052379,60]
[312744226,1706191881961,-159.9062418,0.00052382,12]
[312744227,1706191881971,-150.0,0.00052382,12]
[312744228,1706191881981,-150.101,0.000524,30]
[312744229,1706191881991,-150.101,0.000524,30]
[312744230,1706191882001,-152.5171253,0.000524,30]
[312744231,1706191882010,-158.0,0.000524,120]
[312744232,1706191882020,-500.0,0.00052465,31]
[312744233,1706191882030,-500.0,0.00052465,31]
[312744234,1706191882039,-500.0,0.00052465,31]
[312744235,1706191882050,-500.0,0.00052465,31]
[312744236,1706191882060,-500.0,0.00052465,31]
[312744237,1706191882070,-500.0,0.00052465,31]
[312744238,1706191882079,-500.0,0.00052465,31]
[312744239,1706191882089,-500.0,0.00052465,31]
[312744240,1706191882099,-500.0,0.00052465,31]
[312744241,1706191882108,-500.0,0.00052465,31]
[312744242,1706191882117,-500.0,0.00052465,31]
[312744243,1706191882127,-500.0,0.00052465,31]
[312744244,1706191882135,-500.0,0.00052465,31]
[312744245,1706191882145,-500.0,0.00052465,31]
[312744246,1706191882154,-500.0,0.00052465,2]
[312744247,1706191882162,-500.0,0.00052465,31]
[312744248,1706191882171,-785.98,0.00052465,31]
[312744249,1706191882182,-500.0,0.00052465,31]
[312744250,1706191882191,-500.0,0.00052465,31]
[312744251,1706191882200,-575.32,0.00052465,31]
[312744252,1706191882209,-500.0,0.00052465,31]
[312744253,1706191882218,-787.27,0.00052465,31]
[312744254,1706191882228,-500.0,0.00052465,31]
[312744255,1706191882238,-500.0,0.00052465,31]
[312744256,1706191882248,-641.44,0.00052465,31]
[312744257,1706191882257,-500.0,0.00052465,31]
[312744258,1706191882268,-150.0,0.00052487,2]
[312744259,1706191882277,-168.0,0.000525,120]
[312744260,1706191882287,-153.90506379,0.00052521,60]
[312744261,1706191882299,-362.94569196,0.00052526,60]
[312744262,1706191882311,-1175.50042208,0.00052576,60]
[312744263,1706191882321,-151.0,0.00052596,14]
[312744264,1706191882331,-151.0,0.00052596,14]
[312744265,1706191882343,-151.0,0.00052596,14]
[312744266,1706191882353,-151.0,0.00052596,14]
[312744267,1706191882362,-300.0,0.00052601,2]
[312744268,1706191882373,-512.77,0.00052602,31]
[312744269,1706191882384,-500.0,0.00052602,31]
[312744270,1706191882394,-749.61,0.00052602,31]
[312744271,1706191882405,-500.0,0.00052602,31]
[312744272,1706191882415,-500.0,0.00052602,31]
[312744273,1706191882425,-785.22,0.00052602,120]
[312744274,1706191882434,-500.0,0.00052602,31]
[312744275,1706191882444,-500.0,0.00052602,31]
[312744276,1706191882456,-500.0,0.00052602,31]
[312744277,1706191882466,-500.0,0.00052602,31]
[312744278,1706191882476,-500.0,0.00052602,31]
[312744279,1706191882485,-609.70728522,0.00052602,31]
[312744280,1706191882495,-500.0,0.00052602,31]
[312744281,1706191882504,-500.0,0.00052602,31]
[312744282,1706191882514,-922.06,0.00052602,31]